[Event "25th Zadar Open 2018"]
[Site "Zadar"]
[Date "2018.12.22"]
[Round "9.15"]
[White "Nielsen, Hogni Egilstoft"]
[Black "Cebalo, Miso"]
[Result "1-0"]
[ECO "B75"]
[WhiteElo "2400"]
[BlackElo "2262"]
[Annotator "RC"]
[PlyCount "111"]
[EventDate "2018.12.15"]
[EventType "swiss"]
[EventCountry "CRO"]
[SourceTitle "playchess.com"]
[Source "ChessBase"]
[SourceQuality "1"]
[TimeControl "40/5400+30:1800+30"]

1. e4 {[%emt 0:00:30]} c5 {[%emt 0:00:30]} 2. Nf3 {[%emt 0:00:00]} d6 {[%emt 0:00:30]} 3. d4 {[%emt 0:01:00]} cxd4 {[%emt 0:00:00]} 4. Nxd4 {[%emt 0:00:00]} Nf6 {[%emt 0:01:00]} 5. Nc3 {[%emt 0:00:00]} g6 {[%emt 0:00:30]} 6. Be3 {[%emt 0:00:30]} a6 {[%emt 0:00:30]} 7. f3 {[%emt 0:00:30]} Bg7 {[%emt 0:00:30]} 8. Qd2 {[%emt 0:01:30]} h5 {[%emt 0:00:30]} 9. Bc4 {[%emt 0:05:30]} b5 {[%emt 0:02:30]} 10. Bb3 {[%emt 0:00:30]} Bb7 {[%emt 0:00:30]} 11. O-O-O {[%emt 0:06:30]} Nbd7 {[%emt 0:00:30]} 12. a3 {[%emt 0:07:30]} Rc8 {[%emt 0:02:30]} 13. Kb1 {[%emt 0:05:30]} Qc7 {[%emt 0:11:30]} 14. h3 {[%emt 0:15:30]} h4 {[%emt 0:05:30]} 15. Rhe1 {[%emt 0:05:30]} Nb6 {[%emt 0:04:30]} 16. e5 {[%emt 0:06:30]} Nfd5 {[%emt 0:10:30]} 17. Nxd5 {[%emt 0:03:30]} Nxd5 {[%emt 0:06:30]} 18. exd6 {[%emt 0:02:30]} Qxd6 {[%emt 0:11:30]} 19. Nxb5 {[%emt 0:06:30]} axb5 {[%emt 0:00:30]} 20. Bxd5 {[%emt 0:01:30]} Ba6 {[%emt 0:05:30]} 21. Qa5 {[%emt 0:14:28]} Qc7 {[%emt 0:00:30]} 22. Qxc7 {[%emt 0:00:53]} Rxc7 {[%emt 0:00:00]} 23. Bb6 {[%emt 0:00:18]} Rc8 {[%emt 0:00:00]} 24. Bc6+ {[%emt 0:00:25]} Kf8 {[%emt 0:01:30]} 25. Rd7 {[%emt 0:01:34]} Bf6 {[%emt 0:00:30]} 26. Be4 {[%emt 0:00:51]} Rb8 {[%emt 0:02:30]} 27. Ba5 {[%emt 0:01:03]} b4 {[%emt 0:04:30]} 28. Bxb4 {[%emt 0:00:20]} Rh5 {[%emt 0:00:30]} 29. f4 {[%emt 0:05:33]} Kg7 {[%emt 0:01:30]} 30. Bd3 {[%emt 0:01:09]} Bxd3 {[%emt 0:01:30]} 31. Rxd3 {[%emt 0:00:13]} Rf5 {[%emt 0:00:30]} 32. Re4 {[%emt 0:00:51]} g5 {[%emt 0:01:30]} 33. fxg5 {[%emt 0:02:33]} Rxg5 {[%emt 0:00:30]} 34. Rxh4 {[%emt 0:02:35]} Rxg2 {[%emt 0:00:30]} 35. Rg4+ {[%emt 0:00:28]} Rxg4 {[%emt 0:00:30]} 36. hxg4 {[%emt 0:00:02]} Kg6 {[%emt 0:00:00]} 37. Bc3 {[%emt 0:01:49]} Bxc3 {[%emt 0:04:00]} 38. Rxc3 {[%emt 0:00:02]} Kg5 {[%emt 0:00:30]} 39. Rc4 {[%emt 0:01:10]} e5 {[%emt 0:00:30]} 40. Kc1 {[%emt 0:00:00]} Kh4 {[%emt 0:00:00]} 41. a4 {[%emt 0:10:13]} Kg3 {[%emt 0:05:00]} 42. a5 {[%emt 0:02:30]} Kf3 {[%emt 0:00:30]} 43. a6 {[%emt 0:05:38]} Ra8 {[%emt 0:01:30]} 44. Rc7 {[%emt 0:07:38]} Rxa6 {[%emt 0:03:30]} 45. Rxf7+ {[%emt 0:00:07]} Ke2 {[%emt 0:00:30]} 46. b4 {[%emt 0:02:01]} e4 {[%emt 0:00:30]} 47. g5 {[%emt 0:01:02]} e3 {[%emt 0:02:30]} 48. Rf6 {[%emt 0:03:17]} Ra1+ {[%emt 0:00:30]} 49. Kb2 {[%emt 0:00:03]} Rg1 {[%emt 0:00:30]} 50. g6 {[%emt 0:01:03]} Ke1 {[%emt 0:02:30]} 51. b5 {[%emt 0:01:01]} e2 {[%emt 0:01:30]} 52. b6 {[%emt 0:00:45]} Rf1 {[%emt 0:00:30]} 53. Re6 {[%emt 0:00:51]} Rf8 {[%emt 0:01:30]} 54. g7 {[%emt 0:00:39]} Rg8 {[%emt 0:00:30]} 55. b7 {[%emt 0:00:37]} Kf2 {[%emt 0:00:30]} 56. c4 {[%emt 0:00:30]} 1-0

[Event "25th Zadar Open 2018"]
[Site "Zadar"]
[Date "2018.12.22"]
[Round "9.16"]
[White "Djoric, Dusan"]
[Black "Jakic, Ivan"]
[Result "1-0"]
[ECO "B87"]
[WhiteElo "2298"]
[BlackElo "2393"]
[Annotator "NA"]
[PlyCount "81"]
[EventDate "2018.12.15"]
[EventType "swiss"]
[EventCountry "CRO"]
[SourceTitle "playchess.com"]
[Source "ChessBase"]
[SourceQuality "1"]
[TimeControl "40/5400+30:1800+30"]

{[%evp 11,65,0,24,6,9,0,0,0,0,32767,43,16,14,13,15,11,40,14,31,10,71,60,43,50,78,38,33,36,58,26,102,32767,32767,32767,32767,32767,32767,32767,32767,32767,32767,32767,32767,32767,32767,32767,32767,32767,32767,32767,135,158,670,855,831,899]} 1. e4 {[%emt 0:00:30]} c5 {[%emt 0:00:30]} 2. Nf3 {[%emt 0:00:30]} d6 {[%emt 0:00:00]} 3. d4 {[%emt 0:01:30]} cxd4 {[%emt 0:00:00]} 4. Nxd4 {[%emt 0:00:00]} Nf6 {[%emt 0:00:00]} 5. Nc3 {[%emt 0:01:00]} a6 {[%emt 0:00:00]} 6. Bc4 {[%emt 0:01:30]} e6 {[%emt 0:00:00]} 7. Bb3 {[%emt 0:00:00]} b5 {[%emt 0:00:00]} 8. a3 {[%emt 0:00:00]} Be7 {[%emt 0:00:30]} 9. O-O {[%emt 0:01:30]} O-O {[%emt 0:00:30]} 10. Be3 {[%emt 0:00:30]} Bd7 {[%emt 0:01:30]} 11. f4 {[%emt 0:06:30]} Nc6 {[%emt 0:00:30]} 12. f5 {[%emt 0:00:30] LiveBook: 3 Games} Nxd4 {[%emt 0:03:30]} 13. Bxd4 {[%emt 0:01:30]} Rc8 $146 {[%emt 0:02:30] B87: Sicilian Scheveningen/Najdorf: 6 Bc4, with early ...b5} ({Predecessor:} 13... exf5 14. exf5 Bc6 15. Qd3 Re8 16. Rad1 d5 17. Kh1 Qd6 18. Bxf6 Bxf6 19. Bxd5 Bxd5 20. Nxd5 Rad8 21. c3 {½-½ (30) Karsay,P (2071)-Moench,D (1798) Wiesbaden 2015}) 14. fxe6 {[%emt 0:02:30]} Bxe6 {[%emt 0:01:30]} 15. h3 {[%emt 0:11:30]} Nd7 {[%emt 0:08:30]} 16. Bxe6 $1 {[%emt 0:00:30]} fxe6 {[%emt 0:00:30]} 17. Qg4 {[%emt 0:00:30]} e5 {[%emt 0:01:30]} 18. Be3 {[%emt 0:10:30]} Nf6 {[%emt 0:07:30]} 19. Qe6+ {[%emt 0:00:30]} Kh8 {[%emt 0:00:00]} 20. Bg5 {[%emt 0:05:30]} Qe8 {[%emt 0:07:00]} (20... a5 $14) 21. Bxf6 {[%emt 0:00:30]} Bxf6 {[%emt 0:01:30]} 22. Qxd6 {[%emt 0:04:30]} Rc6 {[%emt 0:00:30]} 23. Qd3 {[%emt 0:01:30]} Qc8 {[%emt 0:00:30]} 24. Rf2 {[%emt 0:01:30]} Be7 {[%emt 0:01:30]} 25. Rxf8+ {[%emt 0:00:30]} Bxf8 {[%emt 0:00:00]} 26. Kh2 {[%emt 0:02:30]} h6 {[%emt 0:01:00]} 27. Rf1 {[%emt 0:01:30]} Bxa3 {[%emt 0:04:30]} 28. Nxb5 {[%emt 0:00:30]} Bc5 {[%emt 0:01:30]} 29. Nc3 {[%emt 0:06:30]} Bd4 {[%emt 0:00:30]} 30. Nd5 {[%emt 0:00:30]} Rxc2 {[%emt 0:07:30] [#]} 31. Ne7 $1 {[%emt 0:02:30]} Qc4 $2 {[%emt 0:03:30] [#]} (31... Qc5 $16) 32. Qf3 $1 {[%emt 0:01:30]} ({Weaker is} 32. Rf8+ Kh7 $16) 32... Be3 {[%emt 0:07:30]} 33. Qf8+ $18 {[%emt 0:18:05]} Kh7 {[%emt 0:00:00]} 34. Qf5+ {[%emt 0:00:46]} Kh8 {[%emt 0:00:00]} 35. b3 {[%emt 0:04:42]} Qxb3 {[%emt 0:08:30]} 36. Rb1 {[%emt 0:01:09]} Rxg2+ {[%emt 0:05:30]} 37. Kxg2 {[%emt 0:00:15]} Qc2+ {[%emt 0:01:30]} 38. Kg3 {[%emt 0:00:25]} Bf4+ {[%emt 0:02:30]} 39. Kh4 {[%emt 0:00:26]} Qf2+ {[%emt 0:07:10]} 40. Kh5 {[%emt 0:00:00]} Qf3+ {[%emt 0:00:00]} 41. Kg6 {[%emt 0:00:42]} 1-0

[Event "25th Zadar Open 2018"]
[Site "Zadar"]
[Date "2018.12.22"]
[Round "9.17"]
[White "Mendonca, Leon Luke"]
[Black "Volotovsky, Kirill"]
[Result "1-0"]
[ECO "E10"]
[WhiteElo "2350"]
[BlackElo "2179"]
[Annotator "ChessBase"]
[PlyCount "55"]
[EventDate "2018.12.15"]
[EventType "swiss"]
[EventCountry "CRO"]
[SourceTitle "playchess.com"]
[Source "ChessBase"]
[SourceQuality "1"]
[TimeControl "40/5400+30:1800+30"]

1. d4 {[%emt 0:00:30]} Nf6 {[%emt 0:03:30]} 2. c4 {[%emt 0:00:00]} e6 {[%emt 0:00:30]} 3. Nf3 {[%emt 0:00:00]} c5 {[%emt 0:02:30]} 4. d5 {[%emt 0:13:30]} b5 {[%emt 0:01:30]} 5. dxe6 {[%emt 0:02:30]} fxe6 {[%emt 0:00:00]} 6. cxb5 {[%emt 0:00:30]} d5 {[%emt 0:00:00]} 7. e3 {[%emt 0:00:30]} a6 {[%emt 0:02:30]} 8. Nc3 {[%emt 0:03:30]} Bd6 {[%emt 0:03:30]} 9. b3 {[%emt 0:04:30]} O-O {[%emt 0:02:30]} 10. Bb2 {[%emt 0:03:30]} Bb7 {[%emt 0:18:30]} 11. Be2 {[%emt 0:17:30]} e5 {[%emt 0:07:30]} 12. bxa6 {[%emt 0:03:30]} Nxa6 {[%emt 0:01:30]} 13. Nb5 {[%emt 0:04:30]} e4 {[%emt 0:20:30]} 14. Ng5 {[%emt 0:01:30]} Nc7 {[%emt 0:00:30]} 15. Nxd6 {[%emt 0:03:30]} Qxd6 {[%emt 0:00:30]} 16. O-O {[%emt 0:05:30]} Ba6 {[%emt 0:10:30]} 17. Bxa6 {[%emt 0:07:30]} Rxa6 {[%emt 0:00:30]} 18. f3 {[%emt 0:04:30]} exf3 {[%emt 0:02:30]} 19. Rxf3 {[%emt 0:03:07]} Qe7 {[%emt 0:06:12]} 20. Qd3 {[%emt 0:03:51]} Rfa8 {[%emt 0:02:20]} 21. Raf1 {[%emt 0:08:43]} Nce8 {[%emt 0:00:11]} 22. a3 {[%emt 0:02:23]} Rb6 {[%emt 0:01:29]} 23. Nxh7 {[%emt 0:02:24]} c4 {[%emt 0:01:11]} 24. Nxf6+ {[%emt 0:01:01]} Nxf6 {[%emt 0:00:17]} 25. Bxf6 {[%emt 0:00:50]} Qf7 {[%emt 0:00:53]} 26. Bd4 {[%emt 0:01:10]} Qxf3 {[%emt 0:00:23]} 27. gxf3 {[%emt 0:00:18]} cxd3 {[%emt 0:00:40]} 28. Bxb6 {[%emt 0:00:01]} 1-0

[Event "25th Zadar Open 2018"]
[Site "Zadar"]
[Date "2018.12.22"]
[Round "9.18"]
[White "Jeet, Jain"]
[Black "Nielsen, Rogvi Egilstoft"]
[Result "1/2-1/2"]
[ECO "B00"]
[WhiteElo "2212"]
[BlackElo "2339"]
[Annotator "ChessBase"]
[PlyCount "67"]
[EventDate "2018.12.15"]
[EventType "swiss"]
[EventCountry "CRO"]
[SourceTitle "playchess.com"]
[Source "ChessBase"]
[SourceQuality "1"]
[TimeControl "40/5400+30:1800+30"]

1. e4 {[%emt 0:02:30]} b6 {[%emt 0:00:30]} 2. d4 {[%emt 0:00:30]} Bb7 {[%emt 0:00:30]} 3. Nc3 {[%emt 0:01:30]} e6 {[%emt 0:00:00]} 4. a3 {[%emt 0:01:30]} Ne7 {[%emt 0:05:00]} 5. f4 {[%emt 0:03:30]} d5 {[%emt 0:02:30]} 6. e5 {[%emt 0:00:30]} c5 {[%emt 0:00:30]} 7. Nf3 {[%emt 0:00:30]} Nf5 {[%emt 0:04:30]} 8. Ne2 {[%emt 0:00:30]} h5 {[%emt 0:02:30]} 9. c3 {[%emt 0:00:30]} Be7 {[%emt 0:04:30]} 10. g3 {[%emt 0:01:30]} a5 {[%emt 0:07:30]} 11. Neg1 {[%emt 0:04:30]} Ba6 {[%emt 0:06:30]} 12. Bxa6 {[%emt 0:01:30]} Rxa6 {[%emt 0:01:30]} 13. Ne2 {[%emt 0:00:30]} Qd7 {[%emt 0:19:30]} 14. h3 {[%emt 0:03:30]} Nc6 {[%emt 0:07:30]} 15. Kf2 {[%emt 0:09:30]} a4 {[%emt 0:08:30]} 16. g4 {[%emt 0:00:30]} Nh4 {[%emt 0:01:30]} 17. Nxh4 {[%emt 0:06:30]} Bxh4+ {[%emt 0:00:30]} 18. Kg2 {[%emt 0:00:00]} Be7 {[%emt 0:01:30]} 19. Qd3 {[%emt 0:03:00]} Ra8 {[%emt 0:13:58]} 20. f5 {[%emt 0:00:00]} hxg4 {[%emt 0:00:52]} 21. hxg4 {[%emt 0:00:00]} Rxh1 {[%emt 0:00:07]} 22. Kxh1 {[%emt 0:00:30]} Kd8 {[%emt 0:00:16]} 23. Nf4 {[%emt 0:01:30]} cxd4 {[%emt 0:03:11]} 24. fxe6 {[%emt 0:04:30]} fxe6 {[%emt 0:00:03]} 25. cxd4 {[%emt 0:00:00]} Kc7 {[%emt 0:02:11]} 26. Ng6 {[%emt 0:06:00]} Kb7 {[%emt 0:03:38]} 27. Bd2 {[%emt 0:03:30]} Rc8 {[%emt 0:00:29]} 28. Kg2 {[%emt 0:09:30]} Qd8 {[%emt 0:02:21]} 29. Rh1 {[%emt 0:02:30]} Qg8 {[%emt 0:00:15]} 30. Rh8 {[%emt 0:11:30]} Qf7 {[%emt 0:00:11]} 31. Rh1 {[%emt 0:12:17]} Qg8 {[%emt 0:00:09]} 32. Rh8 {[%emt 0:00:06]} Qf7 {[%emt 0:00:03]} 33. Rh1 {[%emt 0:00:05]} Qg8 {[%emt 0:00:06]} 34. Rh8 {[%emt 0:00:06]} 1/2-1/2

[Event "25th Zadar Open 2018"]
[Site "Zadar"]
[Date "2018.12.22"]
[Round "9.19"]
[White "Sokac, Marko"]
[Black "Ivekovic, Bozidar"]
[Result "0-1"]
[ECO "B67"]
[WhiteElo "2301"]
[BlackElo "2406"]
[Annotator "NA RC"]
[PlyCount "63"]
[EventDate "2018.12.15"]
[EventType "swiss"]
[EventCountry "CRO"]
[SourceTitle "playchess.com"]
[Source "ChessBase"]
[SourceQuality "1"]
[TimeControl "40/5400+30:1800+30"]

1. e4 {[%emt 0:01:30]} c5 {[%emt 0:00:30]} 2. Nf3 {[%emt 0:00:30]} d6 {[%emt 0:00:30]} 3. d4 {[%emt 0:00:30]} cxd4 {[%emt 0:00:30]} 4. Nxd4 {[%emt 0:00:00]} Nf6 {[%emt 0:00:00]} 5. Nc3 {[%emt 0:01:00]} Nc6 {[%emt 0:00:00]} 6. Bg5 {[%emt 0:00:30]} e6 {[%emt 0:00:00]} 7. Qd2 {[%emt 0:00:30]} a6 {[%emt 0:00:00]} 8. O-O-O {[%emt 0:00:30]} Bd7 {[%emt 0:00:30]} 9. f4 {[%emt 0:00:00]} b5 {[%emt 0:00:00]} 10. Bxf6 {[%emt 0:00:00]} gxf6 {[%emt 0:00:00]} 11. Kb1 {[%emt 0:00:30] LiveBook: 872 Games} Qb6 {[%emt 0:00:00]} 12. Nxc6 {[%emt 0:00:30]} Bxc6 {[%emt 0:00:00]} 13. f5 {[%emt 0:00:30]} O-O-O {[%emt 0:00:30] [#] B67: Sicilian: Richter-Rauzer: 7...a6 8 0-0-0 Bd7, lines without 9 f4 Be7} 14. Qd3 $146 {[%emt 0:02:30]} ({Predecessor:} 14. fxe6 fxe6 15. a3 Be7 16. g3 Rdg8 17. Bh3 Bd7 18. Ne2 Rg5 19. Nf4 Re5 20. Rhe1 Kb8 21. Nd3 Rh5 22. Nf4 Re5 23. Nd3 Rh5 24. Nf4 {½-½ (24) Magem Badals,J (2543)-Salgado Lopez,I (2662) Monzon 2016}) 14... b4 {[%emt 0:27:30]} 15. Ne2 {[%emt 0:03:30]} d5 {[%emt 0:10:30]} 16. Nf4 $2 {[%emt 0:26:30]} (16. fxe6 $11 dxe4 17. Qxd8+ Qxd8 18. Rxd8+ Kxd8 19. exf7) 16... Bh6 {[%emt 0:09:30]} 17. Qxa6+ {[%emt 0:24:30]} (17. Qg3 $17 {might work better.} dxe4 18. Bc4 Rxd1+ 19. Rxd1) 17... Kc7 {[%emt 0:00:30]} 18. Nh5 {[%emt 0:12:30]} dxe4 {[%emt 0:02:30] Discovered Attack (Double check)} 19. Qe2 $2 {[%emt 0:11:25]} (19. Qxb6+ {is tougher.} Kxb6 20. Bc4) 19... exf5 {[%emt 0:05:30]} 20. Re1 {[%emt 0:02:44]} Bd5 {[%emt 0:02:30]} 21. Ng3 {[%emt 0:01:56]} Ra8 {[%emt 0:02:30]} 22. b3 {[%emt 0:01:02]} Qa5 {[%emt 0:00:30]} 23. a4 $19 {[%emt 0:01:25]} bxa3 {[%emt 0:00:30]} 24. Ka2 {[%emt 0:00:15]} Qc3 {[%emt 0:00:30]} 25. Rb1 {[%emt 0:00:04]} Bc1 {[%emt 0:01:30]} 26. Nxf5 {[%emt 0:01:27]} Qb2+ {[%emt 0:00:30]} 27. Rxb2 {[%emt 0:00:03]} axb2+ {[%emt 0:00:00]} 28. Qa6 {[%emt 0:00:02]} Rxa6+ {[%emt 0:00:00]} 29. Bxa6 {[%emt 0:00:02]} Ra8 {[%emt 0:00:30]} 30. Ka3 {[%emt 0:00:37]} b1=Q+ {[%emt 0:00:30]} 31. Kb4 {[%emt 0:00:16]} Rxa6 {[%emt 0:00:30]} 32. Kc5 {[%emt 0:00:13]} 0-1

[Event "25th Zadar Open 2018"]
[Site "Zadar"]
[Date "2018.12.22"]
[Round "9.21"]
[White "Bilobrk, Franjo"]
[Black "Bosnjak, Petar"]
[Result "1/2-1/2"]
[ECO "E05"]
[WhiteElo "2364"]
[BlackElo "2255"]
[Annotator "ChessBase"]
[PlyCount "85"]
[EventDate "2018.12.15"]
[EventType "swiss"]
[EventCountry "CRO"]
[SourceTitle "playchess.com"]
[Source "ChessBase"]
[SourceQuality "1"]
[TimeControl "40/5400+30:1800+30"]

1. Nf3 {[%emt 0:04:30]} Nf6 {[%emt 0:02:30]} 2. c4 {[%emt 0:00:30]} e6 {[%emt 0:00:30]} 3. g3 {[%emt 0:00:30]} d5 {[%emt 0:00:30]} 4. Bg2 {[%emt 0:00:30]} Be7 {[%emt 0:00:30]} 5. O-O {[%emt 0:00:30]} O-O {[%emt 0:00:00]} 6. d4 {[%emt 0:00:00]} dxc4 {[%emt 0:00:00]} 7. Qc2 {[%emt 0:00:00]} a6 {[%emt 0:00:00]} 8. a4 {[%emt 0:00:30]} Bd7 {[%emt 0:00:00]} 9. Qxc4 {[%emt 0:01:30]} Bc6 {[%emt 0:00:00]} 10. Bg5 {[%emt 0:00:00]} Bd5 {[%emt 0:01:00]} 11. Qc2 {[%emt 0:00:00]} Be4 {[%emt 0:00:30]} 12. Qc1 {[%emt 0:00:30]} h6 {[%emt 0:04:30]} 13. Bxf6 {[%emt 0:00:30]} Bxf6 {[%emt 0:00:30]} 14. Nc3 {[%emt 0:05:30]} Bxf3 {[%emt 0:02:30]} 15. Bxf3 {[%emt 0:01:30]} c6 {[%emt 0:00:00]} 16. Rd1 {[%emt 0:00:30]} a5 {[%emt 0:01:00]} 17. Ne4 {[%emt 0:05:30]} Na6 {[%emt 0:10:30]} 18. Kg2 {[%emt 0:00:30]} Nb4 {[%emt 0:07:30]} 19. h4 {[%emt 0:01:30]} Be7 {[%emt 0:05:30]} 20. Qc4 {[%emt 0:03:30]} Nd5 {[%emt 0:06:30]} 21. Rab1 {[%emt 0:03:30]} Qb6 {[%emt 0:04:30]} 22. Nc3 {[%emt 0:05:30]} Nb4 {[%emt 0:06:30]} 23. e3 {[%emt 0:05:30]} Rac8 {[%emt 0:04:30]} 24. Rd2 {[%emt 0:10:30]} Rfe8 {[%emt 0:08:30]} 25. Rbd1 {[%emt 0:01:30]} Nd5 {[%emt 0:01:30]} 26. Na2 {[%emt 0:02:30]} Red8 {[%emt 0:01:30]} 27. Nc3 {[%emt 0:06:30]} Nf6 {[%emt 0:08:30]} 28. e4 {[%emt 0:01:30]} Qb4 {[%emt 0:00:30]} 29. Qe2 {[%emt 0:00:30]} Bf8 {[%emt 0:05:15]} 30. Rd3 {[%emt 0:02:30]} Rd7 {[%emt 0:01:48]} 31. Qc2 {[%emt 0:03:30]} Rcd8 {[%emt 0:07:03]} 32. Na2 {[%emt 0:01:30]} Qb6 {[%emt 0:00:20]} 33. Qc3 {[%emt 0:01:30]} Qa7 {[%emt 0:02:49]} 34. Qc4 {[%emt 0:00:30]} Qb6 {[%emt 0:01:53]} 35. R1d2 {[%emt 0:04:30]} Be7 {[%emt 0:00:18]} 36. Rb3 {[%emt 0:01:30]} Qa7 {[%emt 0:00:18]} 37. Rbd3 {[%emt 0:00:30]} Qb6 {[%emt 0:00:05]} 38. b3 {[%emt 0:08:16]} Ba3 {[%emt 0:04:04]} 39. Qc3 {[%emt 0:07:42]} Be7 {[%emt 0:00:44]} 40. Rd1 {[%emt 0:00:00]} Ba3 {[%emt 0:00:00]} 41. R1d2 {[%emt 0:05:02]} Bf8 {[%emt 0:11:53]} 42. Rd1 {[%emt 0:00:30]} Ba3 {[%emt 0:00:30]} 43. R1d2 {[%emt 0:00:30]} 1/2-1/2

[Event "25th Zadar Open 2018"]
[Site "Zadar"]
[Date "2018.12.22"]
[Round "9.22"]
[White "Sinanovic, Muhamed"]
[Black "Pallitsch, Clemens"]
[Result "1/2-1/2"]
[ECO "A33"]
[WhiteElo "2325"]
[BlackElo "2176"]
[Annotator "ChessBase"]
[PlyCount "22"]
[EventDate "2018.12.15"]
[EventType "swiss"]
[EventCountry "CRO"]
[SourceTitle "playchess.com"]
[Source "ChessBase"]
[SourceQuality "1"]
[TimeControl "40/5400+30:1800+30"]

1. c4 {[%emt 0:00:30]} Nf6 {[%emt 0:00:30]} 2. g3 {[%emt 0:00:00]} c5 {[%emt 0:00:00]} 3. Bg2 {[%emt 0:00:00]} e6 {[%emt 0:00:00]} 4. Nf3 {[%emt 0:00:00]} Be7 {[%emt 0:00:00]} 5. O-O {[%emt 0:00:00]} O-O {[%emt 0:00:00]} 6. d4 {[%emt 0:00:00]} cxd4 {[%emt 0:00:00]} 7. Nxd4 {[%emt 0:00:00]} d6 {[%emt 0:00:00]} 8. Nc3 {[%emt 0:00:30]} a6 {[%emt 0:00:30]} 9. b3 {[%emt 0:00:00]} Qc7 {[%emt 0:00:00]} 10. Bb2 {[%emt 0:00:00]} Nc6 {[%emt 0:00:00]} 11. Rc1 {[%emt 0:00:30]} Bd7 {[%emt 0:00:30]} 1/2-1/2

[Event "25th Zadar Open 2018"]
[Site "Zadar"]
[Date "2018.12.22"]
[Round "9.23"]
[White "Chan, Kim Yew"]
[Black "Biliskov, Vjekoslav"]
[Result "1/2-1/2"]
[ECO "A13"]
[WhiteElo "2175"]
[BlackElo "2313"]
[Annotator "NA"]
[PlyCount "58"]
[EventDate "2018.12.15"]
[EventType "swiss"]
[EventCountry "CRO"]
[SourceTitle "playchess.com"]
[Source "ChessBase"]
[SourceQuality "1"]
[TimeControl "40/5400+30:1800+30"]

{[%evp 8,52,5,3,7,-10,32767,32767,-1,32767,10,-8,2,-11,4,3,21,-20,8,0,9,-14,18,9,32767,32767,32767,32767,32767,32767,32767,32767,32767,32767,-17,-20,-26,-30,-18,-18,-20,-22,-30,-28,-21,-23,-7]} 1. Nf3 {[%emt 0:00:30]} d5 {[%emt 0:00:30]} 2. c4 {[%emt 0:00:30]} e6 {[%emt 0:00:30]} 3. b3 {[%emt 0:00:30]} dxc4 {[%emt 0:00:30] A13: English Opening: 1...e6} (3... d4 4. g3 c5 5. e3 Nc6 6. exd4 cxd4 7. Bg2 Nf6 8. O-O Bd6 9. d3 O-O 10. Re1 Re8 11. a3 a5 12. Qc2 e5 13. Bg5 h6 14. Bxf6 Qxf6 15. Nbd2 Bf8 16. c5 Qe7 17. Rac1 {½-½ (57) Sargissian,G (2691)-Mastrovasilis,D (2594) Batumi 2018}) 4. bxc4 {[%emt 0:00:00]} e5 {[%emt 0:00:30]} 5. Nc3 {[%emt 0:02:00]} Nc6 {[%emt 0:01:30] LiveBook: 5 Games} 6. d3 {[%emt 0:03:30]} Bb4 {[%emt 0:02:30]} 7. Bd2 {[%emt 0:00:30]} Nf6 $146 {[%emt 0:01:30]} ({Predecessor:} 7... Nge7 8. Rb1 f6 9. Qa4 Bxc3 10. Bxc3 O-O 11. e3 {½-½ (41) Badea,B (2480)-Vukovic,Z (2471) Bucharest 2000}) 8. g3 {[%emt 0:03:30]} O-O {[%emt 0:04:30]} 9. Bg2 {[%emt 0:00:30]} Re8 {[%emt 0:06:30]} 10. O-O {[%emt 0:00:30]} Rb8 {[%emt 0:04:30]} 11. Rb1 {[%emt 0:04:30]} a5 {[%emt 0:06:30]} 12. Ng5 {[%emt 0:06:30]} h6 {[%emt 0:14:30]} 13. Nge4 {[%emt 0:00:30]} Nxe4 {[%emt 0:01:30]} 14. Nxe4 {[%emt 0:04:30]} Bxd2 {[%emt 0:05:30]} 15. Qxd2 {[%emt 0:02:30]} b6 {[%emt 0:00:30]} 16. Nc3 {[%emt 0:13:30]} Bb7 {[%emt 0:06:30]} 17. c5 {[%emt 0:04:30]} Nd4 {[%emt 0:02:30]} 18. cxb6 {[%emt 0:00:30]} cxb6 {[%emt 0:01:30]} 19. Bxb7 {[%emt 0:02:30]} Rxb7 {[%emt 0:01:30]} 20. Nb5 {[%emt 0:00:30]} e4 {[%emt 0:02:30]} 21. Rfd1 {[%emt 0:01:30]} Nxb5 {[%emt 0:07:30]} 22. Rxb5 {[%emt 0:00:30]} exd3 {[%emt 0:00:00]} 23. Qxd3 {[%emt 0:02:30]} Qxd3 {[%emt 0:00:00]} 24. exd3 {[%emt 0:00:30]} Re2 {[%emt 0:03:30]} 25. Rdb1 {[%emt 0:00:30]} Rxa2 {[%emt 0:00:30]} 26. Rxb6 {[%emt 0:00:30]} Rxb6 $11 {[%emt 0:03:30]} 27. Rxb6 {[%emt 0:00:00]} a4 {[%emt 0:00:30]} 28. Ra6 {[%emt 0:00:00]} Rd2 {[%emt 0:00:30]} 29. Rxa4 {[%emt 0:00:30]} Rxd3 {[%emt 0:01:30]} 1/2-1/2